bitfinex/quotes_BTCUSD_20260117
["timestamp","ask_amount","ask_price","bid_price","bid_amount"]
[1768662053828,0.01048108,95410.0,95405.0,0.01048163]
[1768662054186,0.0104813,95408.0,95404.0,0.01048174]
[1768662055718,0.06288849,95407.0,95403.0,0.01048185]
[1768662055969,0.01048152,95406.0,95402.0,0.06289172]
[1768662058818,0.0104813,95408.0,95403.0,0.01048185]
[1768662059184,0.0104813,95408.0,95404.0,0.05240861]
[1768662059387,0.01048141,95407.0,95404.0,0.01048174]
[1768662059584,0.01048141,95407.0,95403.0,0.01048185]
[1768662060817,0.06288874,95407.0,95403.0,0.01048185]
[1768662061818,0.01048174,95404.0,95399.0,0.0628935]
[1768662062403,0.01048174,95404.0,95401.0,0.01048207]
[1768662062619,0.01048174,95404.0,95401.0,0.01028768]
[1768662062833,0.01048174,95404.0,95401.0,0.01009326]
[1768662063664,0.01048174,95404.0,95401.0,0.00989885]
[1768662064399,0.06289051,95404.0,95400.0,0.01048218]
[1768662064606,0.01048119,95409.0,95404.0,0.01048174]
[1768662064837,0.01048119,95409.0,95404.0,0.06289038]
[1768662065041,0.01048119,95409.0,95404.0,0.01048174]
[1768662065259,0.0104813,95408.0,95405.0,0.01048163]
[1768662065463,0.0104813,95408.0,95405.0,0.01028723]
[1768662066030,0.0104813,95408.0,95405.0,0.01009282]
[1768662066445,0.0104813,95408.0,95404.0,0.01048174]
[1768662066850,0.01048141,95407.0,95404.0,0.01048174]
[1768662067051,0.01048141,95407.0,95403.0,0.01048185]
[1768662067211,0.01048141,95407.0,95404.0,0.01048174]
[1768662068068,0.0104813,95408.0,95404.0,0.06289041]
[1768662068489,0.0104813,95408.0,95405.0,0.01048163]
[1768662068814,0.01048119,95409.0,95405.0,0.06288964]
[1768662069019,0.01048119,95409.0,95406.0,0.01048152]
[1768662069464,0.01048119,95409.0,95406.0,0.01028714]
[1768662069720,0.01048108,95410.0,95407.0,0.01048141]
[1768662070143,0.01096134,95412.0,95408.0,0.0104813]
[1768662070340,0.00048048,95412.0,95409.0,0.06288698]
[1768662070562,0.00048048,95412.0,95411.0,0.05240485]
[1768662072295,0.00048048,95412.0,95409.0,0.0628868]
[1768662072626,0.00048048,95412.0,95409.0,0.01048119]
[1768662073089,0.00048048,95412.0,95410.0,0.05240537]
[1768662074180,0.00048048,95412.0,95409.0,0.06288713]
[1768662074368,0.00048048,95412.0,95409.0,0.01048119]
[1768662074720,0.00048048,95412.0,95410.0,0.052405]
[1768662075078,0.00048048,95412.0,95409.0,0.06288714]
[1768662075303,0.00048048,95412.0,95410.0,0.0524053]
[1768662075674,0.00048048,95412.0,95409.0,0.06288667]
[1768662075871,0.00048048,95412.0,95410.0,0.05240537]
[1768662076286,1e-08,95412.0,95411.0,0.04026717]
[1768662076490,1e-08,95412.0,95411.0,0.05240485]
[1768662080639,1e-08,95412.0,95409.0,0.06288679]
[1768662080937,1e-08,95412.0,95411.0,0.05240485]
[1768662081702,1e-08,95412.0,95409.0,0.01048119]
[1768662082018,1e-08,95412.0,95409.0,0.0628871]
[1768662082806,0.01048087,95412.0,95408.0,0.0104813]
[1768662083212,0.01048087,95412.0,95409.0,0.01048119]
[1768662083535,1e-08,95412.0,95409.0,0.01048119]
[1768662083668,1e-08,95412.0,95409.0,0.06288709]
[1768662084318,1e-08,95412.0,95408.0,0.0104813]
[1768662084838,0.01048119,95409.0,95403.0,0.01048185]
[1768662085040,0.01048108,95410.0,95406.0,0.01048152]
[1768662085478,0.01048119,95409.0,95403.0,0.06289098]
[1768662085681,0.01048108,95410.0,95406.0,0.01048152]
[1768662085914,1e-08,95412.0,95408.0,0.05240647]
[1768662086161,0.01048087,95412.0,95408.0,0.0104813]
[1768662086351,0.01048097,95411.0,95407.0,0.01048141]
[1768662087047,0.01048087,95412.0,95407.0,0.01048141]
[1768662087256,1e-08,95412.0,95408.0,0.0104813]
[1768662087412,1e-08,95412.0,95409.0,0.01048119]
[1768662087775,1e-08,95412.0,95409.0,0.06288711]
[1768662090191,1e-08,95412.0,95409.0,0.01048119]
[1768662090404,0.02262267,95411.0,95408.0,0.0628876]
[1768662090574,1e-08,95412.0,95410.0,0.05240492]
[1768662090772,0.02262265,95411.0,95410.0,0.05240492]
[1768662091560,0.02262265,95411.0,95410.0,0.05232083]
[1768662091757,1e-08,95412.0,95411.0,0.05240485]
[1768662092656,0.01048087,95412.0,95395.0,0.2098001]
[1768662092873,0.01048119,95409.0,95403.0,0.01048185]
[1768662093108,0.0104813,95408.0,95404.0,0.01048174]
[1768662093301,0.0104813,95408.0,95403.0,0.01048185]
[1768662093502,0.01048141,95407.0,95403.0,0.01048185]
[1768662093706,0.0104813,95408.0,95404.0,0.01048174]
[1768662093961,0.01048152,95406.0,95402.0,0.127]
[1768662094456,0.0104813,95408.0,95402.0,0.127]
[1768662095224,0.0104813,95408.0,95404.0,0.01048174]
[1768662096842,0.01048141,95407.0,95403.0,0.01048185]
[1768662098393,0.01048141,95407.0,95403.0,0.01039143]
[1768662099081,0.01048108,95410.0,95403.0,0.01039143]
[1768662099285,0.01048119,95409.0,95405.0,0.01048163]
[1768662100671,0.01048119,95409.0,95404.0,0.01048174]
[1768662101011,0.0104813,95408.0,95404.0,0.01048174]
[1768662101947,0.06288785,95408.0,95402.0,0.13748196]
[1768662102143,0.36666059,95407.0,95402.0,0.13748196]
[1768662102354,0.36666059,95407.0,95403.0,0.01048185]
[1768662102596,0.01048141,95407.0,95403.0,0.01048185]
[1768662102944,0.01048152,95406.0,95402.0,0.13748196]
[1768662103890,0.02261527,95405.0,95402.0,0.13748196]
[1768662104117,0.01048119,95409.0,95402.0,0.13748196]
[1768662104239,0.05240657,95408.0,95402.0,0.13748196]
[1768662104435,0.05240657,95408.0,95402.0,0.01048196]
[1768662105379,0.01048141,95407.0,95402.0,0.01048196]
[1768662105700,0.01048108,95410.0,95404.0,0.01048174]
[1768662105897,0.01048119,95409.0,95405.0,0.01048163]
[1768662106307,0.05240547,95410.0,95404.0,0.01048174]
[1768662106620,0.05240496,95411.0,95405.0,0.01048163]
[1768662106801,0.01048087,95412.0,95407.0,0.01048141]
[1768662107125,0.34019853,95413.0,95405.0,0.01048163]
[1768662107288,0.34019853,95413.0,95407.0,0.01048141]
[1768662107289,0.01048097,95411.0,95407.0,0.01048141]
[1768662107859,0.01048097,95411.0,95405.0,0.06288977]
[1768662107860,0.127,95416.0,95411.0,0.01048097]
[1768662108099,0.127,95416.0,95412.0,0.0524043]
[1768662108676,0.028234,95423.0,95420.0,0.05239982]
[1768662108906,0.01047844,95434.0,95426.0,0.01047932]
[1768662109106,0.01047811,95437.0,95432.0,0.01047866]
[1768662109107,0.13747811,95437.0,95432.0,0.01047866]
[1768662109301,0.01047822,95436.0,95432.0,0.01047866]
[1768662109483,0.01047811,95437.0,95430.0,0.01047888]
[1768662109823,0.010638,95438.0,95427.0,0.56908916]
[1768662109824,0.00016,95438.0,95434.0,0.01047844]
[1768662110022,0.010638,95438.0,95434.0,0.01047844]
[1768662110220,0.01111051,95438.0,95433.0,0.01047855]
[1768662111065,0.00063251,95438.0,95435.0,0.01047833]
[1768662111890,0.01111051,95438.0,95434.0,0.01047844]
[1768662112570,0.01047811,95437.0,95433.0,0.01047855]
[1768662112891,0.01047811,95437.0,95432.0,0.01047866]
[1768662113701,0.00063251,95438.0,95433.0,0.01047855]
[1768662113907,0.00063251,95438.0,95435.0,0.01047833]
[1768662115106,0.00063251,95438.0,95435.0,0.06286994]
[1768662115468,0.01111051,95438.0,95434.0,0.01047844]
[1768662116224,0.00063251,95438.0,95435.0,0.01047833]
[1768662116663,0.00063251,95438.0,95436.0,0.05239068]
[1768662116876,0.00063251,95438.0,95436.0,0.05239113]
[1768662117260,0.00063251,95438.0,95435.0,0.06286993]
[1768662117461,0.00063251,95438.0,95435.0,0.01047833]
[1768662118484,0.00063251,95438.0,95434.0,0.01047844]
[1768662119500,0.00063251,95438.0,95435.0,0.01047833]
[1768662120380,0.00063251,95438.0,95434.0,0.01047844]
[1768662120543,0.00063251,95438.0,95435.0,0.01047833]
[1768662120900,0.00063251,95438.0,95437.0,0.05239058]
[1768662121111,0.00063251,95438.0,95437.0,0.05230015]
[1768662121328,0.00063251,95438.0,95436.0,0.05239104]
[1768662121630,0.00063251,95438.0,95435.0,0.01047833]
[1768662122463,0.00063251,95438.0,95435.0,0.06286999]
[1768662123725,0.00063251,95438.0,95436.0,0.05239103]
[1768662123948,0.00063251,95438.0,95435.0,0.01047833]
[1768662124171,0.00063251,95438.0,95435.0,0.06286999]
[1768662124414,0.00063251,95438.0,95433.0,0.01047855]
[1768662125128,0.00063251,95438.0,95434.0,0.01047844]
[1768662125129,0.01111051,95438.0,95434.0,0.01047844]
[1768662126238,0.01047811,95437.0,95433.0,0.01047855]
[1768662126455,0.01047811,95437.0,95432.0,0.01047866]
[1768662126689,0.01047822,95436.0,95432.0,0.01047866]
[1768662126912,0.01047822,95436.0,95431.0,0.01047877]
[1768662126913,0.01047833,95435.0,95431.0,0.01047877]
[1768662127110,0.01047833,95435.0,95431.0,0.01038835]
[1768662127333,0.01047833,95435.0,95431.0,0.01029793]
[1768662127592,0.01047822,95436.0,95432.0,0.01047866]
[1768662127831,0.01111051,95438.0,95434.0,0.01047844]
[1768662128680,0.01047811,95437.0,95433.0,0.01047855]
[1768662129080,0.01047811,95437.0,95433.0,0.01038813]
[1768662129677,0.01111051,95438.0,95434.0,0.01047844]
[1768662130298,0.01111051,95438.0,95435.0,0.01047833]
[1768662130630,0.01047811,95437.0,95433.0,0.01038813]
[1768662131107,0.01047822,95436.0,95432.0,0.01047866]
[1768662131665,0.01047811,95437.0,95432.0,0.01047866]
[1768662132066,0.01047822,95436.0,95432.0,0.00866184]
[1768662132266,0.03367713,95438.0,95434.0,0.01047844]
[1768662133114,0.02256662,95437.0,95434.0,0.01047844]
[1768662133782,0.02256662,95437.0,95434.0,0.06287061]
[1768662134190,0.02256662,95436.0,95434.0,0.06287061]
[1768662134428,0.00063251,95438.0,95435.0,0.01047833]
[1768662134644,0.02257396,95437.0,95435.0,0.01047833]
[1768662134868,0.02257396,95436.0,95435.0,0.01047833]
[1768662136787,0.02257396,95436.0,95435.0,0.06287001]
[1768662139153,0.02257396,95436.0,95434.0,0.01047844]
[1768662139380,0.02257396,95435.0,95434.0,0.06287066]
[1768662140503,0.00063251,95438.0,95436.0,0.05239068]
[1768662140945,0.00063251,95438.0,95437.0,0.05239058]
[1768662142282,0.00063251,95438.0,95435.0,0.01047833]
[1768662142483,0.00063251,95438.0,95437.0,0.05239058]
[1768662143249,0.00063251,95438.0,95435.0,0.01047833]
[1768662143443,0.00063251,95438.0,95436.0,0.05239103]
[1768662143636,0.00063251,95438.0,95435.0,0.06286949]
[1768662144462,0.01111051,95438.0,95435.0,0.01047833]
[1768662144606,0.00063251,95438.0,95435.0,0.01047833]
[1768662144809,0.00063251,95438.0,95435.0,0.06287]
[1768662146689,0.06350065,95438.0,95433.0,0.01047855]
[1768662146967,0.06350065,95438.0,95433.0,0.06287127]
[1768662147477,0.01047811,95437.0,95434.0,0.01047844]
[1768662147653,0.00063251,95438.0,95435.0,0.01047833]
[1768662148021,0.00063251,95438.0,95435.0,0.06287]
[1768662148866,0.00063251,95438.0,95436.0,0.05239087]
[1768662149699,1e-08,95438.0,95437.0,0.05239058]
[1768662149908,1e-08,95438.0,95435.0,0.06286966]
[1768662150061,1e-08,95438.0,95437.0,0.05239058]
[1768662151045,1e-08,95438.0,95436.0,0.05239101]
[1768662151647,1e-08,95438.0,95437.0,0.05239058]
[1768662152604,0.0226299,95438.0,95436.0,0.0523907]
[1768662152726,0.02262989,95437.0,95436.0,0.0523907]
[1768662153451,0.02262989,95437.0,95436.0,0.05239113]
[1768662153891,0.02262989,95437.0,95433.0,0.01047855]
[1768662154118,0.02262989,95436.0,95433.0,0.01047855]
[1768662154284,0.02262989,95435.0,95433.0,0.01047855]
[1768662154485,0.02262989,95434.0,95432.0,0.00866184]
[1768662154679,0.02262989,95433.0,95432.0,0.06105516]
[1768662155104,0.01047801,95438.0,95435.0,0.01047833]
[1768662155305,0.01047801,95438.0,95435.0,0.06286998]
[1768662155628,0.01047801,95438.0,95435.0,0.01047833]
[1768662155830,1e-08,95438.0,95435.0,0.01047833]
[1768662155977,1e-08,95438.0,95435.0,0.06286963]
[1768662156378,1e-08,95438.0,95436.0,0.05239108]
[1768662156937,1e-08,95438.0,95435.0,0.01047833]
[1768662157089,0.01047801,95438.0,95433.0,0.06287114]
[1768662157300,0.01047822,95436.0,95432.0,0.01047866]
[1768662157510,0.01047822,95436.0,95432.0,0.06287166]
[1768662158136,0.01047822,95436.0,95433.0,0.01047855]
[1768662158544,0.01047822,95436.0,95433.0,0.06287129]
[1768662158859,0.01047811,95437.0,95433.0,0.06287129]
[1768662159061,1e-08,95438.0,95435.0,0.01047833]
[1768662159221,1e-08,95438.0,95435.0,0.06287001]
[1768662159620,1e-08,95438.0,95434.0,0.01047844]
[1768662160649,0.05239016,95438.0,95434.0,0.01047844]
[1768662161256,0.06286816,95438.0,95434.0,0.01047844]
[1768662161457,0.01047801,95438.0,95434.0,0.01047844]
[1768662161916,0.01047801,95438.0,95435.0,0.01047833]
[1768662162424,0.01047801,95438.0,95434.0,0.06287064]
[1768662162624,0.01047801,95438.0,95435.0,0.01047833]
[1768662163301,0.01047801,95438.0,95435.0,0.06286996]
[1768662164388,1e-08,95438.0,95435.0,0.06286996]
[1768662164711,0.01047801,95438.0,95433.0,0.01047855]
[1768662164856,0.01047811,95437.0,95433.0,0.01047855]
[1768662165235,0.01047822,95436.0,95431.0,0.01029793]
[1768662165422,0.01047833,95435.0,95432.0,0.01047866]
[1768662166129,0.01047811,95437.0,95433.0,0.01047855]
[1768662166657,0.01047811,95437.0,95433.0,0.06287089]
[1768662167233,0.02262826,95436.0,95434.0,0.06287066]
[1768662167446,0.02262826,95435.0,95434.0,0.06287066]
[1768662168891,1e-08,95438.0,95435.0,0.06287001]
[1768662169092,1e-08,95438.0,95435.0,0.01047833]
[1768662169521,1e-08,95438.0,95437.0,0.05239058]
[1768662171592,1e-08,95438.0,95435.0,0.06286987]
[1768662172542,1e-08,95438.0,95435.0,0.01047833]
[1768662174104,1e-08,95438.0,95435.0,0.06286951]
[1768662174901,1e-08,95438.0,95435.0,0.01047833]
[1768662175455,0.01047801,95438.0,95434.0,0.01047844]
[1768662175654,0.01047811,95437.0,95433.0,0.01047855]
[1768662175899,0.01047822,95436.0,95433.0,0.01047855]
[1768662177071,0.0628695,95436.0,95432.0,0.01047866]
[1768662177245,0.0628695,95436.0,95432.0,0.01028426]
[1768662177480,0.06286972,95436.0,95432.0,0.01028426]
[1768662177656,0.06286972,95436.0,95432.0,0.01008986]
[1768662178190,0.06287016,95435.0,95431.0,0.01047877]
[1768662178592,0.06287016,95435.0,95431.0,0.01038837]
[1768662179195,0.0101684,95435.0,95431.0,0.00961087]
[1768662180497,0.0101684,95435.0,95432.0,0.01047866]
[1768662180814,0.06256032,95435.0,95431.0,0.00961087]
[1768662181030,0.02263056,95434.0,95432.0,0.06287194]
[1768662181170,0.02263056,95433.0,95432.0,0.01047866]
[1768662181377,0.02263056,95433.0,95432.0,0.01038826]
[1768662181557,0.02258656,95433.0,95431.0,0.00961087]
[1768662181771,0.01047855,95433.0,95429.0,0.01028474]
[1768662182178,0.01047855,95433.0,95429.0,0.06267966]
[1768662182649,0.01047844,95434.0,95430.0,0.01047888]
[1768662182871,0.01047822,95436.0,95432.0,0.01047866]
[1768662183325,0.01047822,95436.0,95432.0,0.06287172]
[1768662183987,0.01047822,95436.0,95433.0,0.01047855]
[1768662186848,0.06286952,95436.0,95432.0,0.01047866]
[1768662187289,0.06287001,95435.0,95430.0,0.06287328]
[1768662187951,0.01047844,95434.0,95430.0,0.01047888]
[1768662188170,0.062871,95434.0,95430.0,0.01047888]
[1768662188599,0.01047855,95433.0,95430.0,0.01047888]
[1768662189929,0.06287158,95433.0,95429.0,0.01028474]
[1768662190154,0.01047855,95433.0,95430.0,0.01047888]
[1768662190793,0.06287142,95433.0,95429.0,0.01028474]
[1768662191003,0.01047866,95432.0,95429.0,0.01028474]
[1768662195194,0.01047855,95433.0,95429.0,0.06258889]
[1768662195394,0.02263059,95432.0,95429.0,0.01019435]
[1768662195536,0.02263059,95431.0,95430.0,0.05239442]
[1768662196309,0.01047822,95436.0,95432.0,0.06287187]
[1768662196521,0.01047822,95436.0,95432.0,0.01047866]
[1768662197166,0.01047822,95436.0,95432.0,0.0628719]
[1768662197838,0.06287001,95435.0,95430.0,0.01047888]
[1768662198046,0.06287001,95435.0,95430.0,0.06287323]
[1768662199016,0.01047833,95435.0,95431.0,0.01047877]
[1768662200084,0.06287012,95435.0,95431.0,0.01047877]
[1768662200510,0.01047855,95433.0,95430.0,0.01047888]
[1768662201163,0.01047855,95433.0,95429.0,0.01019435]
[1768662201164,0.01047866,95432.0,95429.0,0.01019435]
[1768662201398,0.01047866,95432.0,95427.0,0.06287513]
[1768662201615,0.01047866,95432.0,95428.0,0.0104791]
[1768662201837,0.01047855,95433.0,95428.0,0.0104791]
[1768662202124,0.01047855,95433.0,95429.0,0.01047899]
[1768662202337,0.06287151,95433.0,95429.0,0.01047899]
[1768662202756,0.01047866,95432.0,95427.0,0.01047921]
[1768662203220,0.01047899,95429.0,95426.0,0.12696]
[1768662204491,0.0628737,95430.0,95426.0,0.13743932]
[1768662204492,0.01047888,95430.0,95426.0,0.13743932]
[1768662204696,0.06287377,95430.0,95426.0,0.13743932]
[1768662204874,0.01047888,95430.0,95426.0,0.13743932]
[1768662205309,0.01047888,95430.0,95427.0,0.01047921]
[1768662205519,0.01047877,95431.0,95428.0,0.0104791]
[1768662205741,0.01047888,95430.0,95426.0,0.12696]
[1768662205977,0.01047998,95420.0,95411.0,0.37019024]
[1768662206182,0.01048009,95419.0,95415.0,0.01048053]
[1768662206394,0.0104802,95418.0,95414.0,0.01064064]
[1768662206637,0.01048042,95416.0,95412.0,0.01048086]
[1768662206845,0.01048042,95416.0,95411.0,0.01048097]
[1768662206846,0.01048053,95415.0,95411.0,0.01048097]
[1768662207251,0.01048064,95414.0,95409.0,0.25293643]
[1768662207424,0.01048097,95411.0,95406.0,0.01048152]
[1768662207623,0.01048097,95411.0,95407.0,0.01048141]
[1768662207833,0.01048086,95412.0,95408.0,0.0104813]
[1768662208198,0.01048064,95414.0,95410.0,0.01048108]
[1768662208452,0.01048075,95413.0,95408.0,0.0104813]
[1768662208858,0.01048075,95413.0,95409.0,0.01048119]
[1768662209243,0.01048064,95414.0,95409.0,0.01048119]
[1768662209784,0.01048031,95417.0,95412.0,0.01048086]
[1768662210075,0.38348465,95419.0,95415.0,0.01048053]
[1768662211889,0.0104802,95418.0,95414.0,0.01048064]
[1768662212239,0.01048053,95415.0,95410.0,0.01048108]
[1768662212591,0.01048053,95415.0,95411.0,0.01048097]
[1768662213143,0.01048042,95416.0,95412.0,0.01048086]
[1768662214133,0.01048031,95417.0,95413.0,0.01048075]
[1768662217692,0.37300456,95419.0,95416.0,0.01048042]
[1768662219034,0.38348465,95419.0,95415.0,0.01048053]
[1768662219530,0.37300456,95419.0,95415.0,0.01048053]
[1768662220338,0.37300456,95419.0,95416.0,0.01048042]
[1768662220639,0.37300456,95419.0,95416.0,0.06288242]
[1768662220856,0.37300456,95419.0,95416.0,0.01048042]
[1768662221041,0.37300456,95419.0,95416.0,0.06288205]
[1768662222269,0.37300456,95419.0,95416.0,0.01048042]
[1768662222620,0.51363653,95421.0,95417.0,0.01048031]
[1768662223073,0.01047998,95420.0,95416.0,0.01048042]
[1768662223277,0.01048009,95419.0,95415.0,0.01048053]
[1768662223985,0.51363653,95421.0,95417.0,0.01048031]
[1768662225279,0.50315666,95421.0,95418.0,0.0104802]
[1768662226270,0.50315666,95421.0,95419.0,0.05239993]
[1768662226913,0.04188,95428.0,95424.0,0.01047954]
[1768662227067,0.01047833,95435.0,95430.0,0.05239434]
[1768662227278,0.01063801,95438.0,95431.0,0.06287252]
[1768662227475,0.13747811,95437.0,95433.0,0.01047855]
[1768662227673,0.127,95437.0,95434.0,0.01047844]
[1768662227873,0.13747811,95437.0,95433.0,0.01047855]
[1768662228488,0.01047822,95436.0,95430.0,0.01047888]
[1768662228701,0.01047822,95436.0,95431.0,0.01047877]
[1768662229143,0.01047833,95435.0,95431.0,0.01047877]
[1768662230398,0.01047822,95436.0,95432.0,0.01047866]
[1768662230944,0.01047833,95435.0,95431.0,0.01047877]
[1768662231950,0.01047822,95436.0,95432.0,0.01047866]
[1768662232103,0.01047833,95435.0,95432.0,0.01047866]
[1768662232307,0.01047833,95435.0,95431.0,0.01047877]
[1768662232883,0.01047844,95434.0,95431.0,0.01047877]
[1768662233080,0.01047844,95434.0,95430.0,0.01047888]
[1768662233286,0.01047855,95433.0,95428.0,0.0104791]
[1768662233607,0.01047866,95432.0,95429.0,0.01047899]
[1768662233845,0.01047866,95432.0,95428.0,0.0104791]
[1768662234428,0.06287399,95429.0,95425.0,0.3903782]
[1768662234611,0.0104791,95428.0,95425.0,0.3903782]
[1768662235449,0.06287466,95428.0,95425.0,0.3903782]
[1768662235652,0.0104791,95428.0,95425.0,0.3903782]
[1768662236003,0.0104791,95428.0,95425.0,0.40085763]
[1768662236189,0.0104791,95428.0,95425.0,0.3903782]
[1768662236901,0.06287462,95428.0,95425.0,0.3903782]
[1768662237168,0.0104791,95428.0,95425.0,0.40085763]
[1768662237432,0.01047899,95429.0,95426.0,0.01047932]
[1768662238256,0.01047899,95429.0,95425.0,0.40085763]
[1768662238452,0.01047888,95430.0,95426.0,0.01047932]
[1768662238659,0.01047866,95432.0,95428.0,0.0104791]
[1768662238954,0.01047866,95432.0,95429.0,0.01047899]
[1768662240134,0.01047866,95432.0,95426.0,0.01047932]
[1768662240342,0.01047888,95430.0,95426.0,0.01047932]
[1768662240750,0.01047899,95429.0,95426.0,0.01047932]
[1768662241187,0.06287397,95429.0,95425.0,0.40085763]
[1768662241349,0.0104791,95428.0,95425.0,0.3903782]
[1768662241548,0.01048053,95415.0,95411.0,0.01048097]
[1768662241753,0.127,95420.0,95413.0,0.01048075]
[1768662241945,0.13748009,95419.0,95414.0,0.05240217]
[1768662242585,0.127,95419.0,95416.0,0.05240211]
[1768662242799,0.127,95419.0,95416.0,0.01048042]
[1768662243014,0.127,95420.0,95418.0,0.0104802]
[1768662243217,0.13747965,95423.0,95419.0,0.06288055]
[1768662243420,0.01047965,95423.0,95419.0,0.06288055]
[1768662243756,0.01047965,95423.0,95419.0,0.01048009]
[1768662243954,0.01047965,95423.0,95420.0,0.01047998]
[1768662244855,0.01047965,95423.0,95418.0,0.0104802]
[1768662244856,0.01047976,95422.0,95418.0,0.0104802]
[1768662245511,0.01047976,95422.0,95418.0,0.06288119]
[1768662245715,0.01047976,95422.0,95419.0,0.01048009]
[1768662246316,0.01047965,95423.0,95420.0,0.01047998]
[1768662246472,0.01047976,95422.0,95418.0,0.0104802]
[1768662246678,0.01047976,95422.0,95418.0,0.06288076]
[1768662247216,0.127,95426.0,95419.0,0.01048009]
[1768662247561,0.01047921,95427.0,95419.0,0.01048009]
[1768662247762,0.06287643,95426.0,95419.0,0.01048009]
[1768662247998,0.06287643,95426.0,95420.0,0.05239942]
[1768662248404,0.0523972,95425.0,95420.0,0.05239942]
[1768662248921,0.06287663,95425.0,95420.0,0.0628794]
[1768662250782,0.01047954,95424.0,95420.0,0.01047998]
[1768662250947,0.06287726,95424.0,95420.0,0.01047998]
[1768662251148,0.01047965,95423.0,95420.0,0.01047998]
[1768662251919,0.06287761,95424.0,95420.0,0.01047998]
[1768662252832,0.01047954,95424.0,95420.0,0.01047998]
[1768662253033,0.06287739,95424.0,95420.0,0.01047998]
[1768662253234,0.01047954,95424.0,95420.0,0.06287982]
[1768662253436,0.01047954,95424.0,95421.0,0.06287921]
[1768662253632,0.01047954,95424.0,95421.0,0.01038948]
[1768662254684,0.06287791,95423.0,95419.0,0.01048009]
[1768662255018,0.01047965,95423.0,95419.0,0.01048009]
[1768662255521,0.01047965,95423.0,95420.0,0.01047998]
[1768662256526,0.01047976,95422.0,95419.0,0.01048009]
[1768662257258,0.01047976,95422.0,95419.0,0.06288043]
[1768662257658,0.06287727,95424.0,95420.0,0.06287983]
[1768662257659,0.01047954,95424.0,95420.0,0.06287983]
[1768662257869,0.01047954,95424.0,95420.0,0.01047998]
[1768662258266,0.06287745,95424.0,95420.0,0.01047998]
[1768662258814,0.06287736,95424.0,95420.0,0.01047998]
[1768662258987,0.01047965,95423.0,95420.0,0.01047998]
[1768662260518,0.05239771,95424.0,95421.0,0.01047987]
[1768662260746,0.01047954,95424.0,95421.0,0.01047987]
[1768662261155,0.00964114,95424.0,95421.0,0.01047987]
[1768662261996,0.06203894,95424.0,95421.0,0.01047987]
[1768662262192,0.06203894,95424.0,95420.0,0.01047998]
[1768662262193,0.06287799,95423.0,95420.0,0.01047998]
[1768662262780,0.06287799,95423.0,95419.0,0.01048009]
[1768662263230,0.01047976,95422.0,95419.0,0.01048009]
[1768662263817,0.06287877,95422.0,95419.0,0.01048009]
[1768662264415,0.01047976,95422.0,95419.0,0.01048009]
[1768662264812,0.01047965,95423.0,95420.0,0.01047998]
[1768662265403,0.01047965,95423.0,95419.0,0.01048009]
[1768662265800,0.06287836,95423.0,95419.0,0.01048009]
[1768662266117,0.01047976,95422.0,95419.0,0.01048009]
[1768662266320,0.01047965,95423.0,95420.0,0.01047998]
[1768662266734,0.01047965,95423.0,95419.0,0.01048009]
[1768662266735,0.01047965,95423.0,95419.0,0.06288052]
[1768662267118,0.06287879,95422.0,95419.0,0.01048009]
[1768662267322,0.01047976,95422.0,95419.0,0.01048009]
[1768662268275,0.01047976,95422.0,95419.0,0.06288043]
[1768662268500,0.01047976,95422.0,95419.0,0.01048009]
[1768662268637,0.01047976,95422.0,95419.0,0.06288051]
[1768662268835,0.01047976,95422.0,95419.0,0.01048009]
[1768662269874,0.01047965,95423.0,95420.0,0.01047998]
[1768662270438,0.01047965,95423.0,95419.0,0.06288012]
[1768662270439,0.06287794,95423.0,95419.0,0.01048009]
[1768662271208,0.01047976,95422.0,95419.0,0.01048009]
[1768662271341,0.01047987,95421.0,95418.0,0.06288121]
[1768662271542,0.01047976,95422.0,95419.0,0.01048009]
[1768662272907,0.01047976,95422.0,95419.0,0.06288055]
[1768662273145,0.01047976,95422.0,95419.0,0.01048009]
[1768662273700,0.01047976,95422.0,95418.0,0.0104802]
[1768662273907,0.01047976,95422.0,95419.0,0.01048009]
[1768662274106,0.01047976,95422.0,95418.0,0.0104802]
[1768662274303,0.01047976,95422.0,95419.0,0.01048009]
[1768662275225,0.01047976,95422.0,95419.0,0.06288042]
[1768662275731,0.01047965,95423.0,95420.0,0.01047998]
[1768662275932,0.01047965,95423.0,95419.0,0.01048009]
[1768662276709,0.06287815,95423.0,95419.0,0.01048009]
[1768662276939,0.01047965,95423.0,95419.0,0.01048009]
[1768662277574,0.01047976,95422.0,95419.0,0.01048009]
[1768662277800,0.01047965,95423.0,95419.0,0.01048009]
[1768662278003,0.01047921,95427.0,95422.0,0.01047976]
[1768662278237,0.01047921,95427.0,95423.0,0.06287769]
[1768662278614,0.02262834,95430.0,95427.0,0.01047921]
[1768662278867,0.01047877,95431.0,95427.0,0.00708822]
[1768662279079,0.01047877,95431.0,95426.0,0.06287586]
[1768662279713,0.01047877,95431.0,95425.0,0.01047943]
[1768662279714,0.01047899,95429.0,95425.0,0.01047943]
[1768662279913,0.01047877,95431.0,95427.0,0.05239594]
[1768662280115,0.01047888,95430.0,95426.0,0.01047932]
[1768662280421,0.01047888,95430.0,95427.0,0.01047921]
[1768662280806,0.06287341,95430.0,95427.0,0.01040076]
[1768662281314,0.01047888,95430.0,95427.0,0.01040076]
[1768662281538,0.01047921,95427.0,95424.0,0.01047954]
[1768662282908,0.06287538,95427.0,95424.0,0.01047954]
[1768662283114,0.01047899,95429.0,95424.0,0.06287716]
[1768662283727,0.0104791,95428.0,95424.0,0.01047954]
[1768662284130,0.01047899,95429.0,95425.0,0.01047943]
[1768662284331,0.0104791,95428.0,95425.0,0.01047943]
[1768662285993,0.0104791,95428.0,95425.0,0.00785123]
[1768662287510,0.01047899,95429.0,95425.0,0.06024812]
[1768662287908,0.06287267,95431.0,95426.0,0.01047932]
[1768662288112,0.01047877,95431.0,95427.0,0.05239605]
[1768662288321,0.06287135,95433.0,95428.0,0.0104791]
[1768662288528,0.01047855,95433.0,95430.0,0.01047888]
[1768662288728,0.06287181,95433.0,95428.0,0.0104791]
[1768662288971,0.01047866,95432.0,95429.0,0.01047899]
[1768662289272,0.05239346,95432.0,95429.0,0.34726649]
[1768662289591,0.01047855,95433.0,95428.0,0.0104791]
[1768662289780,0.01047877,95431.0,95427.0,0.01047921]
[1768662289986,0.01047866,95432.0,95428.0,0.06287409]
[1768662290163,0.01047866,95432.0,95428.0,0.0104791]
[1768662290569,0.062872,95432.0,95428.0,0.0104791]
[1768662290777,0.01047877,95431.0,95428.0,0.0104791]
[1768662290941,0.06287266,95431.0,95428.0,0.0104791]
[1768662291453,0.01047877,95431.0,95428.0,0.0104791]
[1768662292295,0.01047888,95430.0,95426.0,0.01047932]
[1768662292645,0.01047899,95429.0,95426.0,0.01047932]
[1768662293170,0.01047888,95430.0,95427.0,0.01047921]
[1768662293735,0.01047877,95431.0,95428.0,0.0104791]
[1768662293882,0.01047877,95431.0,95428.0,0.0628746]
[1768662294232,0.01047866,95432.0,95429.0,0.01047899]
[1768662295391,0.01047866,95432.0,95429.0,0.06287395]
[1768662295620,0.05239113,95436.0,95431.0,0.01047877]
[1768662295795,0.06286873,95437.0,95431.0,0.06287251]